[Event "37th ECCC 2022"]
[Site "Mayrhofen"]
[Date "2022.10.03"]
[Round "1.7"]
[White "Harikrishna, Pentala"]
[Black "Zwirs, Nico"]
[Result "1-0"]
[ECO "D35"]
[WhiteElo "2717"]
[BlackElo "2481"]
[Annotator "TA"]
[PlyCount "89"]
[EventDate "2022.10.03"]
[EventType "team-tourn"]
[EventCountry "AUT"]
[SourceTitle "playchess.com"]
[Source "ChessBase"]
[SourceQuality "1"]
[TimeControl "40/5400+30:1800+30"]

{[%evp 18,89,11,8,22,0,0,0,20,15,17,0,0,0,35,8,0,5,41,21,25,43,54,47,51,51,60,57,52,48,61,54,33,31,35,18,39,14,70,73,67,68,78,63,106,50,93,82,65,33,103,94,420,419,412,411,630,618,608,619,567,601,677,670,654,635,707,616,29986,29986,29982,29983,29990,29991]} 1. c4 {[%emt 0:00:03]} e6 {[%emt 0:00:07]} 2. Nc3 {[%emt 0:00:04]} d5 {[%emt 0:00:08]} 3. d4 {[%emt 0:00:05]} Nf6 {[%emt 0:00:15]} 4. cxd5 {[%emt 0:00:06]} exd5 {[%emt 0:00:06]} 5. Bg5 {[%emt 0:00:04]} c6 {[%emt 0:01:45]} 6. e3 {[%emt 0:00:09]} h6 {[%emt 0:00:06]} 7. Bh4 {[%emt 0:00:05]} Be7 {[%emt 0:00:11]} 8. Bd3 {[%emt 0:01:01]} O-O {[%emt 0:00:07]} 9. Nge2 $1 {[%emt 0:04:18][%mdl 4] is recently more successful than 9.Qc2.} Nbd7 {[%emt 0:00:38]} 10. O-O {[%emt 0:00:49]} Re8 {[%emt 0:00:32] 10...Ne4 is not played anymore. D35: Queen's Gambit Declined: Exchange Variation.} 11. a4 {[%emt 0:00:48]} a5 {[%emt 0:06:37]} 12. f3 {[%emt 0:02:02]} Nf8 {[%emt 0:14:05] The position is equal.} 13. Kh1 {[%emt 0:06:04] [#]} Ne6 $146 {[%emt 0:09:48]} ({Predecessor:} 13... Qb6 14. Qd2 Be6 15. Bf2 Rad8 16. Rad1 Bb4 17. Qc1 Qc7 18. Bg3 Qe7 19. h3 b6 {0-1 (50) Santos Latasa,J (2680)-Korobov,A (2671) Bydgoszcz 2022}) 14. Rc1 {[%emt 0:11:32]} b6 {[%emt 0:23:07]} 15. Bf2 {[%emt 0:03:53]} c5 {[%emt 0:14:02]} 16. Ng3 {[%emt 0:16:10]} cxd4 {[%emt 0:01:46]} 17. exd4 {[%emt 0:00:22]} Bf8 {[%emt 0:03:34]} 18. Qd2 {[%emt 0:02:58]} Bd6 {[%emt 0:04:13]} 19. Be3 {[%emt 0:02:51] Prevents Bf4.} Bxg3 {[%emt 0:01:56]} 20. hxg3 {[%emt 0:00:14]} Qd6 {[%emt 0:04:41]} 21. g4 {[%emt 0:02:58]} Bd7 {[%emt 0:01:27]} 22. Nb5 {[%emt 0:06:47]} Qe7 {[%emt 0:01:24]} 23. Rfe1 {[%emt 0:04:16]} Rac8 {[%emt 0:00:01]} 24. Bf2 {[%emt 0:01:23][%cal Ob5c7]} Rxc1 {[%emt 0:01:27]} 25. Rxc1 {[%emt 0:01:33]} Rc8 {[%emt 0:00:06]} 26. Re1 {[%emt 0:07:33][%cal Bc1e1,Be1e5,Be5d5][%mdl 32]} Ne8 {[%emt 0:03:10]} 27. Re5 {[%emt 0:05:47]} N8c7 {[%emt 0:01:47]} (27... Qb4 $11 28. Qxb4 axb4) 28. Nxc7 $1 $14 {[%emt 0:02:05] White has more active pieces.} Rxc7 {[%emt 0:00:05]} 29. Rxd5 {[%emt 0:00:48]} Bxa4 {[%emt 0:00:48]} 30. Re5 {[%emt 0:01:07]} Qd6 {[%emt 0:02:29] [#]} 31. Qe3 {[%emt 0:05:04]} (31. Bg3 $1 $16) 31... Bc2 {[%emt 0:00:53]} 32. Bb5 {[%emt 0:02:48] Bg3 is the strong threat.} Rc8 {[%emt 0:04:24]} (32... Qb4 $2 33. d5 Qxb5 34. dxe6 Qf1+ 35. Kh2 fxe6 36. Qxb6 $18) 33. Bg3 {[%emt 0:05:33][%cal Oe5c5] A strong pair of Bishops.} Qb4 {[%emt 0:00:41] Against Rc5} (33... Nxd4 $14 34. Bc4 Bg6) 34. d5 {[%emt 0:03:05][%csl LRb6,LRe6]} Nf8 {[%emt 0:00:15][%mdl 8192] [#] This move loses the game for Black.} (34... Qxb5 $16 35. dxe6 Qb4) 35. Re8 $1 $18 {[%emt 0:01:17]} Rxe8 {[%emt 0:00:45]} 36. Qxe8 {[%emt 0:00:37] And now d6 would win.} Bb3 {[%emt 0:00:20]} (36... Kh7 $142 37. Bc6 Bg6) 37. d6 {[%emt 0:01:06] aiming for d7.} Be6 {[%emt 0:00:39]} 38. d7 {[%emt 0:00:23]} Bxd7 {[%emt 0:00:29]} 39. Bxd7 {[%emt 0:00:07]} Qb3 {[%emt 0:00:34]} 40. Kh2 {[%emt 0:00:57] White wants to mate with Bd6.} Qd5 {[%emt 0:00:23] Inhibits Bd6.} 41. Bc6 {[%emt 0:31:28]} Qc5 {[%emt 0:02:50]} 42. Be4 {[%emt 0:00:00] Hoping for Bf4.} h5 {[%emt 0:01:41]} 43. Qd8 {[%emt 0:00:00] White mates.} hxg4 {[%emt 0:00:10]} 44. Bd6 {[%emt 0:00:00][%csl Gd6][%cal Rd8f8]} g3+ {[%emt 0:00:50]} 45. Kxg3 {[%emt 0:00:00] Weighted Error Value: White=0.09 (flawless) /Black=0.48} 1-0

[Event "37th ECCC 2022"]
[Site "Mayrhofen"]
[Date "2022.10.03"]
[Round "1.8"]
[White "Van Delft, Merijn"]
[Black "Vidit, Santosh Gujrathi"]
[Result "0-1"]
[ECO "B46"]
[WhiteElo "2363"]
[BlackElo "2710"]
[Annotator "TA"]
[PlyCount "74"]
[EventDate "2022.10.03"]
[EventType "team-tourn"]
[EventCountry "AUT"]
[SourceTitle "playchess.com"]
[Source "ChessBase"]
[SourceQuality "1"]
[TimeControl "40/5400+30:1800+30"]

{[%evp 15,74,19,16,19,26,22,40,0,39,0,38,36,43,39,54,60,50,32,38,25,23,0,0,-14,-22,-29,-16,-26,-11,-22,-7,-12,0,0,0,0,0,-94,-106,-244,-244,-250,-250,-250,-250,-250,-252,-252,-251,-250,-250,-251,-248,-503,-503,-503,-503,-533,-533,-492,-478]} 1. e4 {[%emt 0:00:04]} c5 {[%emt 0:00:44]} 2. Nf3 {[%emt 0:00:06]} e6 {[%emt 0:00:14]} 3. d4 {[%emt 0:00:07]} cxd4 {[%emt 0:00:07]} 4. Nxd4 {[%emt 0:00:07]} Nc6 {[%emt 0:00:06]} 5. Nc3 {[%emt 0:00:10]} a6 {[%emt 0:00:09]} 6. Nxc6 {[%emt 0:04:42]} bxc6 {[%emt 0:00:54]} 7. Bd3 {[%emt 0:00:38]} d5 {[%emt 0:00:09]} 8. O-O {[%emt 0:00:20]} Nf6 {[%emt 0:00:10]} 9. Qf3 {[%emt 0:01:25] B46: Sicilian: Taimanov: 5 Nc3 a6.} Be7 {[%emt 0:01:48] 9...Bb7 is the hot move.} 10. Qg3 {[%emt 0:03:17]} Nh5 {[%emt 0:02:21]} 11. Qf3 {[%emt 0:01:25] White is slightly better.} Nf6 {[%emt 0:00:17]} 12. Qg3 {[%emt 0:01:53]} O-O {[%emt 0:00:09]} (12... Nh5 $5 {[%cal Rh5g3]} 13. Qf3 Nf6 $14) 13. Bh6 {[%emt 0:00:57][%csl Gh6][%cal Rg3g7]} Ne8 {[%emt 0:00:08] And now ...Bh4 would win.} 14. Bf4 {[%emt 0:03:36]} f6 {[%emt 0:01:06]} 15. Rad1 {[%emt 0:04:15] [#]} Kh8 $146 {[%emt 0:06:01]} ({Predecessor:} 15... e5 16. Bc1 d4 17. f4 exf4 18. Bxf4 Be6 19. Ne2 c5 20. b3 a5 21. e5 Qd7 22. Qf3 Ra7 23. Qh5 f5 24. Bg5 g6 25. Qh4 Bxg5 26. Qxg5 Ng7 {½-½ (24) Mikalsen,E (2397)-Alekseev,E (2649) Fagernes 2019}) 16. Bc1 {[%emt 0:07:32]} Nd6 {[%emt 0:20:16]} 17. Kh1 {[%emt 0:06:38]} Nf7 {[%emt 0:04:16]} 18. Rfe1 {[%emt 0:06:52]} d4 {[%emt 0:03:52]} 19. Ne2 {[%emt 0:04:48][%cal Oe4e5]} e5 {[%emt 0:02:43]} 20. c3 {[%emt 0:05:15]} c5 {[%emt 0:01:08]} 21. b4 {[%emt 0:02:55]} dxc3 {[%emt 0:27:08]} 22. Bxa6 {[%emt 0:00:39]} Nd6 {[%emt 0:04:51]} 23. Bxc8 {[%emt 0:05:54]} c2 {[%emt 0:04:12]} 24. Rxd6 {[%emt 0:04:18]} Qxd6 {[%emt 0:00:07]} 25. Bb7 {[%emt 0:03:22]} Qd1 {[%emt 0:01:18]} 26. f3 {[%emt 0:02:54]} (26. f4 $1 $11 Rad8 27. Bd5 (27. fxe5 $2 fxe5 28. Ng1 Rf1 $19)) 26... cxb4 $17 {[%emt 0:02:08] Black is more active.} 27. Bd5 {[%emt 0:01:56] [#] White does not recover from this.} (27. Bxa8 $17 Rxa8 28. f4) 27... Rfd8 $1 $19 {[%emt 0:02:33][%cal Ob4b3] White must now prevent ...b3!} 28. Bb3 {[%emt 0:00:24]} ({And not} 28. Bxa8 Rxa8 29. f4 b3 30. axb3 Bb4 $15) 28... Bc5 {[%emt 0:04:03][%cal Oa8a2] ...Rxa2! is the strong threat.} 29. h4 {[%emt 0:01:24] [#]} Qxe1+ {[%emt 0:01:32][%mdl 576] Remove Defender} 30. Qxe1 {[%emt 0:00:09]} Rd1 $1 {[%emt 0:00:02][%mdl 64] Deflection. Really sharp!} 31. Qxd1 {[%emt 0:02:34]} cxd1=Q+ {[%emt 0:00:08]} 32. Bxd1 {[%emt 0:00:05] Hoping for Bb3.} Rxa2 {[%emt 0:00:10]} 33. h5 {[%emt 0:02:12]} b3 {[%emt 0:01:37][%mdl 64] Strongly threatening ...b2. Deflection} 34. Bxb3 {[%emt 0:00:49]} (34. Kh2) 34... Rxe2 {[%emt 0:00:08] Black is clearly winning.} 35. Kh2 {[%emt 0:01:24]} Bb4 {[%emt 0:01:36]} 36. Bf7 {[%emt 0:03:22]} Re1 {[%emt 0:00:24]} 37. Bb2 {[%emt 0:00:06]} Rb1 {[%emt 0:00:06] Weighted Error Value: White=0.28 (precise) /Black=0.05 (flawless)} 0-1

[Event "37th ECCC 2022"]
[Site "Mayrhofen"]
[Date "2022.10.03"]
[Round "1.9"]
[White "Navara, David"]
[Black "Lammens, Tim"]
[Result "1-0"]
[ECO "B30"]
[WhiteElo "2676"]
[BlackElo "2223"]
[Annotator "TA"]
[PlyCount "69"]
[EventDate "2022.10.03"]
[EventType "team-tourn"]
[EventCountry "AUT"]
[SourceTitle "playchess.com"]
[Source "ChessBase"]
[SourceQuality "1"]
[TimeControl "40/5400+30:1800+30"]

{[%evp 12,68,22,-11,-3,-6,8,8,6,17,24,1,19,21,24,10,23,15,15,15,3,14,22,29,29,22,58,13,10,22,19,14,54,54,44,56,37,35,33,33,45,12,28,12,39,39,69,50,102,87,179,176,213,207,226,186,29983,29984,29999]} 1. e4 {[%emt 0:00:02]} c5 {[%emt 0:00:06]} 2. Nf3 {[%emt 0:00:03]} Nc6 {[%emt 0:00:04]} 3. Bb5 {[%emt 0:00:09]} e6 {[%emt 0:00:07]} 4. O-O {[%emt 0:00:49]} Nge7 {[%emt 0:00:08]} 5. Re1 {[%emt 0:01:25]} a6 {[%emt 0:00:16]} 6. Bf1 {[%emt 0:00:07]} d5 {[%emt 0:00:21]} 7. d3 d4 {B30: Sicilian: 2...Nc6 3 Bb5, lines without ...g6.} 8. e5 {[%emt 0:00:28]} Ng6 {[%emt 0:01:27] 8...Ng6 has become a bit dusty these days.} 9. g3 {[%emt 0:01:27]} Qc7 {[%emt 0:01:25][%cal Rg6e5] [#] The position is equal.} 10. Bg2 $146 {[%emt 0:01:24]} ({Predecessor:} 10. Qe2 h5 11. h4 Be7 12. c3 dxc3 13. bxc3 b6 14. Na3 Bb7 15. Nc2 Rd8 16. Bg2 {1-0 (92) Balogh,C (2656)-Gonzalez Zamora,J (2538) Cuernavaca 2014}) 10... Ngxe5 {[%emt 0:04:28]} 11. Nxe5 {[%emt 0:00:15]} Nxe5 {[%emt 0:00:05]} 12. Bf4 {[%emt 0:00:10]} Bd6 {[%emt 0:00:06]} 13. Qh5 {[%emt 0:00:33][%cal Rf4e5]} Ng6 {[%emt 0:03:44]} 14. Bxd6 {[%emt 0:00:15]} Qxd6 {[%emt 0:00:02]} 15. Nd2 {[%emt 0:00:46][%cal Bb1d2,Bd2e4,Be4c5][%mdl 32]} O-O {[%emt 0:10:24]} 16. Ne4 {[%emt 0:08:40][%csl LRc5,LRd6]} Qc7 {[%emt 0:07:23]} 17. Qxc5 {[%emt 0:03:16]} Qxc5 {[%emt 0:00:25]} 18. Nxc5 {[%emt 0:00:06]} Rb8 {[%emt 0:06:17]} 19. a4 {[%emt 0:18:44]} b6 {[%emt 0:04:06]} 20. Nb3 {[%emt 0:00:50]} Rd8 {[%emt 0:02:39]} 21. f4 {[%emt 0:06:52]} Ne7 {[%emt 0:08:35]} 22. a5 {[%emt 0:01:48]} Bb7 {[%emt 0:07:33]} 23. Bxb7 {[%emt 0:06:12]} Rxb7 {[%emt 0:00:02]} 24. axb6 {[%emt 0:00:28]} Rxb6 {[%emt 0:00:08]} 25. Re5 {[%emt 0:00:25]} g6 {[%emt 0:09:39]} 26. Rc5 {[%emt 0:05:47]} Nf5 {[%emt 0:11:00]} 27. Ra2 {[%emt 0:02:25]} Rdb8 {[%emt 0:02:45]} 28. Kf2 {[%emt 0:01:33]} h5 {[%emt 0:05:09]} 29. Kf3 {[%emt 0:03:06]} Kg7 {[%emt 0:03:12] [#]} (29... R8b7 $14) 30. Rc7 $1 $16 {[%emt 0:05:49]} Kf6 {[%emt 0:09:18] [#]} (30... Kf8 $16) 31. Nc5 $1 $18 {[%emt 0:01:34] Hoping for Nd7+.} Rxb2 {[%emt 0:03:47]} 32. Rxa6 {[%emt 0:00:13] Nd7+ is the strong threat.} Re8 {[%emt 0:00:56]} 33. Raa7 {[%emt 0:00:48][%csl Ga7][%cal Rc7f7]} Nd6 {[%emt 0:00:41]} (33... Nh6 $18 34. Ne4+ Kg7) 34. Ne4+ {[%emt 0:00:08]} Nxe4 {[%emt 0:00:18]} 35. Rxf7# {[%emt 0:00:06] Weighted Error Value: White=0.04 (flawless) /Black=0.36} ({Not} 35. Kxe4 Rf8 $16) 1-0

[Event "37th ECCC 2022"]
[Site "Mayrhofen"]
[Date "2022.10.03"]
[Round "1.10"]
[White "Meurs, Tom"]
[Black "Nguyen, Thai Dai Van"]
[Result "1/2-1/2"]
[ECO "B12"]
[WhiteElo "2250"]
[BlackElo "2634"]
[Annotator "TA"]
[PlyCount "150"]
[EventDate "2022.10.03"]
[EventType "team-tourn"]
[EventCountry "AUT"]
[SourceTitle "playchess.com"]
[Source "ChessBase"]
[SourceQuality "1"]
[TimeControl "40/5400+30:1800+30"]

{[%evp 9,150,15,21,10,13,11,5,0,17,4,8,0,8,0,0,0,0,16,28,16,11,20,122,121,122,115,174,196,280,277,543,538,508,526,529,521,768,728,823,823,802,805,793,785,772,542,763,469,464,466,440,456,457,447,441,434,467,362,362,357,470,339,354,354,354,331,400,382,547,535,599,592,540,538,531,523,490,469,506,499,621,616,618,618,618,525,616,614,600,598,598,594,592,587,594,586,585,579,583,583,573,553,479,438,406,134,134,134,134,134,134,134,134,134,134,134,134,134,134,0,134,0,0,0,8,0,0,0,8,0,0,0,0,0,8,8,8,0,8,8,8,0,8]} 1. e4 {[%emt 0:00:03]} c6 {[%emt 0:00:46]} 2. d4 {[%emt 0:00:48]} d5 {[%emt 0:00:13]} 3. e5 {[%emt 0:00:05]} Bf5 {[%emt 0:00:32]} 4. h4 {[%emt 0:00:10]} h5 {[%emt 0:00:57]} 5. Bd3 {[%emt 0:00:09]} Bxd3 {[%emt 0:01:03]} 6. Qxd3 {[%emt 0:00:06][%cal Oe5e6] B12: Caro-Kann: Advance Variation.} Qa5+ {[%emt 0:01:56]} 7. Nd2 {[%emt 0:00:11][%cal Oe5e6] aiming for e6!} e6 $1 {[%emt 0:00:18]} 8. Ngf3 {[%emt 0:01:37]} Nh6 {[%emt 0:02:57]} 9. O-O {[%emt 0:01:02]} Nf5 {[%emt 0:00:13]} 10. Nb3 {[%emt 0:00:27]} Qa6 {[%emt 0:00:32]} 11. Qd1 {[%emt 0:00:12]} b6 {[%emt 0:02:07]} 12. Bg5 {[%emt 0:01:05]} c5 {[%emt 0:01:21]} 13. dxc5 {[%emt 0:00:20]} bxc5 {[%emt 0:09:04]} (13... Bxc5 {keeps more tension.} 14. c3 Nc6 15. a4 O-O) 14. Nbd2 {[%emt 0:00:29] [#]} Nc6 $146 {[%emt 0:22:05]} ({Predecessor:} 14... Nd7 15. c4 d4 16. Qe2 f6 17. Bf4 Kf7 18. Ne4 Be7 19. g3 Nf8 20. exf6 gxf6 {½-½ (30) Georgescu,L (2279)-Machlik,M (2111) Chennai 2022}) 15. c4 {[%emt 0:03:04] Threatening cxd5.} Be7 {[%emt 0:01:44]} (15... d4 $11) 16. cxd5 $16 {[%emt 0:07:28]} exd5 {[%emt 0:00:02]} 17. Nb3 {[%emt 0:07:46]} c4 {[%emt 0:18:17]} (17... O-O $16 {was called for.}) 18. Qxd5 $18 {[%emt 0:17:26]} cxb3 {[%emt 0:15:00]} (18... O-O $142) 19. e6 {[%emt 0:01:51]} fxe6 {[%emt 0:09:42]} (19... f6) 20. Qxe6 {[%emt 0:00:36]} Qc8 {[%emt 0:09:02]} 21. Qg6+ {[%emt 0:01:20]} Kf8 {[%emt 0:00:01]} 22. Rac1 {[%emt 0:01:06]} Bd6 {[%emt 0:00:44] [#]} 23. Rxc6 $1 {[%emt 0:01:42][%mdl 576] Deflection} Qxc6 {[%emt 0:00:02]} (23... Qd7 24. Rxd6) 24. Qxf5+ {[%emt 0:00:10]} Kg8 {[%emt 0:00:03]} 25. Qe6+ {[%emt 0:00:17]} Kh7 {[%emt 0:00:01]} 26. Bf4 {[%emt 0:00:15][%cal Rf3g5][%mdl 64] Pin} ({Not} 26. Ne5 Qe4 27. Qxd6 bxa2 $18) 26... Rhf8 {[%emt 0:03:08]} 27. Ng5+ {[%emt 0:05:14]} Kh8 {[%emt 0:00:01]} 28. Bxd6 {[%emt 0:00:21]} Rf6 {[%emt 0:00:59] Against Qg6} 29. Qe4 {[%emt 0:14:46]} Qxe4 {[%emt 0:00:22]} 30. Nxe4 {[%emt 0:00:06]} Re6 {[%emt 0:00:06]} 31. Ng5 {[%emt 0:00:08]} Re2 {[%emt 0:00:07]} 32. axb3 {[%emt 0:06:00]} Rae8 {[%emt 0:00:53]} 33. Ra1 {[%emt 0:03:22]} Re1+ {[%emt 0:00:09]} 34. Rxe1 {[%emt 0:00:04]} Rxe1+ {[%emt 0:00:03]} 35. Kh2 {[%emt 0:00:07]} Re2 {[%emt 0:00:27] [#]} 36. Be5 {[%emt 0:08:44]} Rxf2 {[%emt 0:00:06]} 37. Bd4 {[%emt 0:08:25]} Re2 {[%emt 0:00:42]} 38. Kg3 {[%emt 0:01:22]} a6 {[%emt 0:02:34]} (38... Re7 {was worth a try.} 39. Kf4 Kg8) 39. Kf3 {[%emt 0:02:01]} Rd2 {[%emt 0:01:08]} 40. Bc3 {[%emt 0:01:48]} Rd3+ {[%emt 0:00:09]} 41. Kf4 {[%emt 0:34:35]} Kg8 {[%emt 0:30:48]} 42. Nf3 {[%emt 0:00:33]} Rd5 {[%emt 0:00:00]} 43. Ke4 {[%emt 0:00:00]} Rd6 {[%emt 0:00:00]} 44. Kf5 {[%emt 0:00:00] Prevents Re6.} g6+ {[%emt 0:00:00]} 45. Ke5 {[%emt 0:00:00]} Rd1 {[%emt 0:00:00]} 46. Kf6 {[%emt 0:00:00]} Rd6+ {[%emt 0:00:00]} 47. Ke7 {[%emt 0:00:00]} Rd3 {[%emt 0:00:00]} 48. b4 {[%emt 0:00:00]} Rd1 {[%emt 0:00:00]} 49. Bd4 {[%emt 0:01:09]} Rc1 {[%emt 0:00:00]} 50. Kd6 {[%emt 0:03:08]} Rc2 {[%emt 0:00:00]} 51. g3 {[%emt 0:00:13]} Rc4 {[%emt 0:00:00]} 52. Bc3 {[%emt 0:03:30]} Rg4 {[%emt 0:00:00]} 53. b5 {[%emt 0:00:28]} axb5 {[%emt 0:00:00]} 54. Be5 {[%emt 0:00:10] Black must now prevent Bf4.} Rc4 {[%emt 0:00:00]} 55. b3 {[%emt 0:00:14]} Rc1 {[%emt 0:00:00]} 56. Nd4 {[%emt 0:00:39]} Rc3 {[%emt 0:00:00]} 57. Nxb5 {[%emt 0:01:25]} (57. Ke6 $18 {is more deadly.}) 57... Rxb3 $16 {[%emt 0:00:00]} 58. Nd4 {[%emt 0:00:05]} Rb6+ {[%emt 0:00:00] [#]} 59. Ke7 $1 {[%emt 0:00:04]} Rb7+ {[%emt 0:00:00]} 60. Kf6 {[%emt 0:00:08]} Rb6+ {[%emt 0:00:00]} 61. Ne6 {[%emt 0:00:09]} Ra6 {[%emt 0:00:00]} 62. Bf4 {[%emt 0:00:46]} Rb6 {[%emt 0:00:00]} 63. Bc7 {[%emt 0:01:48]} (63. Kxg6 $6 Rxe6+ 64. Kxh5 Kg7 $14) 63... Ra6 {[%emt 0:00:00]} 64. Bf4 {[%emt 0:00:11]} ({Resist} 64. Kxg6 $6 Rxe6+ 65. Kxh5 Kg7 $14) 64... Rb6 $1 {[%emt 0:00:00]} 65. Kxg6 {[%emt 0:00:23]} (65. Ke7 $16) 65... Rxe6+ $11 {[%emt 0:00:00] The position is equal.} 66. Kxh5 $16 {[%emt 0:00:05][%mdl 4096] Endgame KR-KB} Kh7 {[%emt 0:02:33]} 67. Kg5 {[%emt 0:00:29]} Rg6+ {[%emt 0:02:26]} 68. Kf5 {[%emt 0:00:09]} Rg8 {[%emt 0:00:12]} 69. Be5 {[%emt 0:01:29]} Rf8+ {[%emt 0:00:59]} 70. Bf6 {[%emt 0:00:09]} Rb8 {[%emt 0:00:18]} 71. g4 {[%emt 0:00:21]} Rb1 {[%emt 0:00:07]} 72. h5 {[%emt 0:00:37]} Rb5+ {[%emt 0:02:09]} 73. Ke6 {[%emt 0:00:16]} Rxh5 {[%emt 0:00:10]} 74. gxh5 {[%emt 0:00:14] Threatening mate with Bg5.} Kh6 {[%emt 0:00:02] Prevents Bg5+.} 75. Bg5+ {[%emt 0:00:11]} Kxh5 {[%emt 0:00:03] Black defended with fortune.  Weighted Error Value: White=0.22 (precise) /Black=0.49} 1/2-1/2

[Event "37th ECCC 2022"]
[Site "Mayrhofen"]
[Date "2022.10.03"]
[Round "1.11"]
[White "Grandelius, Nils"]
[Black "Boel, Marcel"]
[Result "1-0"]
[ECO "A06"]
[WhiteElo "2651"]
[BlackElo "2214"]
[Annotator "TA"]
[PlyCount "69"]
[EventDate "2022.10.03"]
[EventType "team-tourn"]
[EventCountry "AUT"]
[SourceTitle "playchess.com"]
[Source "ChessBase"]
[SourceQuality "1"]
[TimeControl "40/5400+30:1800+30"]

{[%evp 11,69,1,4,18,21,14,15,9,18,16,19,7,5,8,22,0,39,38,51,37,91,88,92,97,170,156,156,168,148,163,157,161,160,139,160,156,158,105,110,106,170,152,166,167,179,177,175,169,350,342,406,406,407,422,420,416,483,472,489,450]} 1. Nf3 {[%emt 0:00:27]} d5 {[%emt 0:00:14]} 2. e3 {[%emt 0:00:57]} Nf6 {[%emt 0:00:27]} 3. c4 {[%emt 0:00:22]} e6 {[%emt 0:00:45]} 4. b3 {[%emt 0:00:34]} Be7 {[%emt 0:00:49]} 5. Bb2 {[%emt 0:00:10]} O-O {[%emt 0:00:19]} 6. Nc3 {[%emt 0:00:10]} b6 {[%emt 0:01:53]} 7. cxd5 {[%emt 0:01:13] A13: English Opening: 1...e6.} exd5 {[%emt 0:01:00]} 8. d4 {[%emt 0:03:27]} c5 {[%emt 0:04:02]} 9. Be2 {[%emt 0:06:55] The position is equal.} Bb7 {[%emt 0:08:08]} 10. O-O {[%emt 0:01:09]} Nbd7 {[%emt 0:00:38]} 11. Bd3 {[%emt 0:05:55]} Re8 {[%emt 0:02:43]} 12. Rc1 {[%emt 0:02:08]} (12. Ne5 {looks sharper.} cxd4 13. exd4 a6 14. f4) 12... Rc8 {[%emt 0:10:23] [#]} 13. Ne2 $146 {[%emt 0:18:41]} ({Predecessor:} 13. Bf5 Qc7 14. Ne5 Rcd8 15. f4 Nf8 16. Bb1 N6d7 17. Qh5 g6 18. Qh3 f6 19. Ng4 {1-0 (31) Sethuraman,S (2644)-Sadykov,R (2345) Chess.com INT 2020}) 13... cxd4 {[%emt 0:10:13]} 14. Nexd4 {[%emt 0:04:43]} Rxc1 {[%emt 0:05:13]} 15. Qxc1 {[%emt 0:00:07]} Qb8 {[%emt 0:00:51] [#]} (15... Bf8 $14) 16. Nf5 $1 $16 {[%emt 0:04:01]} Bf8 {[%emt 0:01:10] [#]} 17. Qa1 $1 {[%emt 0:01:44] White is much more active.} a6 {[%emt 0:03:03] [#]} (17... Qd8 $16) 18. Nh6+ $1 {[%emt 0:04:38][%mdl 512]} gxh6 {[%emt 0:00:46]} 19. Bxf6 {[%emt 0:00:05]} Qd6 {[%emt 0:07:03]} 20. Bd4 {[%emt 0:03:34]} Nc5 {[%emt 0:05:23]} 21. Bc2 {[%emt 0:03:37]} Ne4 {[%emt 0:07:08]} 22. Nh4 {[%emt 0:03:56]} Bc8 {[%emt 0:03:27]} 23. f3 {[%emt 0:01:53]} Ng5 {[%emt 0:02:46]} 24. f4 {[%emt 0:03:55]} ({Better is} 24. Qc3) 24... Ne4 {[%emt 0:00:29]} 25. Rf3 {[%emt 0:04:25] Threatens to win with Bxe4.} Be7 {[%emt 0:02:32]} (25... f6 $16) 26. Bxe4 $18 {[%emt 0:03:07]} Bxh4 {[%emt 0:00:22]} 27. Bd3 {[%emt 0:00:10]} Bg4 {[%emt 0:03:48]} 28. Rf1 {[%emt 0:00:07]} ({Inferior is} 28. Bxa6 Bxf3 29. gxf3 Qg6+ 30. Kh1 Bf2 $17) 28... a5 {[%emt 0:00:12]} 29. Qb2 {[%emt 0:04:54]} ({Resist} 29. Qb1 $6 Bf6 $14) 29... Rc8 $2 {[%emt 0:03:04]} (29... Bd7 30. Rc1 Bd8) 30. f5 {[%emt 0:04:43]} Bh5 {[%emt 0:01:47]} 31. g4 {[%emt 0:04:54]} Bxg4 {[%emt 0:00:12]} 32. Qg2 {[%emt 0:00:03]} h5 {[%emt 0:00:18]} 33. h3 {[%emt 0:00:09][%cal Bh2h3,Bh3g4][%mdl 96] Pin} f6 {[%emt 0:01:12]} 34. hxg4 {[%emt 0:00:45]} Rc7 {[%emt 0:00:10]} 35. Qh2 {[%emt 0:01:53] Weighted Error Value: White=0.05 (flawless) /Black=0.27 (precise)} 1-0

[Event "37th ECCC 2022"]
[Site "Mayrhofen"]
[Date "2022.10.03"]
[Round "1.12"]
[White "Van der Elburg, Freddie"]
[Black "Ragger, Markus"]
[Result "0-1"]
[ECO "A20"]
[WhiteElo "2197"]
[BlackElo "2632"]
[Annotator "RC"]
[PlyCount "40"]
[EventDate "2022.10.03"]
[EventType "team-tourn"]
[EventCountry "AUT"]
[SourceTitle "playchess.com"]
[Source "ChessBase"]
[SourceQuality "1"]
[TimeControl "40/5400+30:1800+30"]

1. c4 {[%emt 0:00:03]} e5 {[%emt 0:00:06]} 2. g3 {[%emt 0:00:10]} d6 {[%emt 0:00:09]} 3. Bg2 {[%emt 0:00:10]} Be7 {[%emt 0:00:05]} 4. d4 {[%emt 0:02:33]} f5 {[%emt 0:00:37]} 5. Nc3 {[%emt 0:01:37]} Nf6 {[%emt 0:00:13]} 6. dxe5 {[%emt 0:06:48]} dxe5 {[%emt 0:00:30]} 7. Qxd8+ {[%emt 0:01:48]} Bxd8 {[%emt 0:00:37]} 8. b3 {[%emt 0:06:31]} c6 {[%emt 0:07:35]} 9. e4 {[%emt 0:10:17]} Na6 {[%emt 0:08:33]} 10. Nge2 fxe4 {[%emt 0:15:12]} 11. Nxe4 {[%emt 0:09:30]} Nxe4 {[%emt 0:00:55]} 12. Bxe4 {[%emt 0:00:06]} Nc5 {[%emt 0:00:03]} 13. Bc2 {[%emt 0:02:06]} Bg4 {[%emt 0:05:07]} 14. Ba3 {[%emt 0:08:38]} Be7 {[%emt 0:13:56]} 15. O-O {[%emt 0:14:02]} Bxe2 {[%emt 0:04:44]} 16. Rfe1 {[%emt 0:00:13]} Ne6 {[%emt 0:00:44]} 17. Bxe7 {[%emt 0:00:26]} Nd4 {[%emt 0:07:51]} 18. Bd6 {[%emt 0:05:18]} Nxc2 {[%emt 0:01:39]} 19. Rxe2 {[%emt 0:01:01]} Nxa1 {[%emt 0:00:09]} 20. Bxe5 {[%emt 0:00:05]} O-O-O {[%emt 0:00:16]} 0-1